[Event "*** SCC Grand Prix: Titled Tuesday Blitz"]
[Site "Chess.com"]
[Date "2020.07.21"]
[Round "2"]
[White "WonderChampion"]
[Black "Batsai"]
[Result "0-1"]
[WhiteElo "1989"]
[BlackElo "2366"]
[TimeControl "180+1"]
[EndTime "10:16:28 PDT"]
[Termination "Batsai won by checkmate"]

1. d4 {[%clk 0:03:00.9]} 1... Nf6 {[%clk 0:02:57.4]} 2. Bg5 {[%clk 0:02:59.4]}
2... g6 {[%clk 0:02:58.3]} 3. Bxf6 {[%clk 0:02:51.9]} 3... exf6 {[%clk
0:02:59.2]} 4. Nf3 {[%clk 0:02:50.7]} 4... d5 {[%clk 0:02:59.3]} 5. Nbd2 {[%clk
0:02:46.4]} 5... Bd6 {[%clk 0:02:59.1]} 6. e3 {[%clk 0:02:44.8]} 6... O-O {[%clk
0:02:58.1]} 7. c4 {[%clk 0:02:43.2]} 7... dxc4 {[%clk 0:02:54.2]} 8. Bxc4 {[%clk
0:02:39.7]} 8... c6 {[%clk 0:02:53.8]} 9. O-O {[%clk 0:02:37.7]} 9... Nd7 {[%clk
0:02:52.9]} 10. Ne4 {[%clk 0:02:36.5]} 10... Be7 {[%clk 0:02:52.1]} 11. Qc2
{[%clk 0:02:33.8]} 11... Nb6 {[%clk 0:02:50.4]} 12. Bb3 {[%clk 0:02:32.2]} 12...
a5 {[%clk 0:02:48.2]} 13. a3 {[%clk 0:02:28.4]} 13... Kg7 {[%clk 0:02:45.3]} 14.
Rad1 {[%clk 0:02:23.5]} 14... a4 {[%clk 0:02:40.9]} 15. Ba2 {[%clk 0:02:20.5]}
15... Bg4 {[%clk 0:02:39.6]} 16. Ned2 {[%clk 0:02:17.4]} 16... Ra5 {[%clk
0:02:37.5]} 17. Qc3 {[%clk 0:02:15.1]} 17... Rh5 {[%clk 0:02:31.5]} 18. h3
{[%clk 0:02:08.2]} 18... Bd7 {[%clk 0:02:22.2]} 19. Ne4 {[%clk 0:02:04.8]} 19...
Qc8 {[%clk 0:02:14.9]} 20. Ng3 {[%clk 0:02:00.7]} 20... Rh6 {[%clk 0:02:15.2]}
21. e4 {[%clk 0:01:39.6]} 21... Bxh3 {[%clk 0:01:45.6]} 22. gxh3 {[%clk
0:01:36.3]} 22... Qxh3 {[%clk 0:01:46.5]} 23. e5 {[%clk 0:01:05.8]} 23... f5
{[%clk 0:01:41.6]} 24. e6 {[%clk 0:00:54.4]} 24... f4 {[%clk 0:01:36.4]} 25.
Rfe1 {[%clk 0:00:29.1]} 25... fxg3 {[%clk 0:01:34.1]} 26. fxg3 {[%clk
0:00:27.6]} 26... Qxg3+ {[%clk 0:01:33.6]} 27. Kf1 {[%clk 0:00:27.3]} 27... fxe6
{[%clk 0:01:24.3]} 28. Re3 {[%clk 0:00:22.1]} 28... Rh1+ {[%clk 0:01:07.3]} 29.
Ke2 {[%clk 0:00:20.4]} 29... Qg2+ {[%clk 0:01:07.7]} 30. Kd3 {[%clk 0:00:14.7]}
30... Rxd1+ {[%clk 0:01:08.6]} 31. Ke4 {[%clk 0:00:15.3]} 31... Qg4+ {[%clk
0:01:08.7]} 32. Ke5 {[%clk 0:00:13.6]} 32... Qf5# {[%clk 0:01:08.6]} 0-1

[Event "*** SCC Grand Prix: Titled Tuesday Blitz"]
[Site "Chess.com"]
[Date "2020.07.21"]
[Round "2"]
[White "imdvb6307"]
[Black "chalowey97"]
[Result "1-0"]
[WhiteElo "2406"]
[BlackElo "2121"]
[TimeControl "180+1"]
[EndTime "10:16:29 PDT"]
[Termination "imdvb6307 won by resignation"]

1. c4 {[%clk 0:02:59.9]} 1... e5 {[%clk 0:02:51.8]} 2. Nc3 {[%clk 0:02:59.3]}
2... Nf6 {[%clk 0:02:52.2]} 3. Nf3 {[%clk 0:02:58.9]} 3... d5 {[%clk 0:02:52.5]}
4. cxd5 {[%clk 0:02:51.6]} 4... Nxd5 {[%clk 0:02:51.7]} 5. Nxe5 {[%clk
0:02:50.2]} 5... Nxc3 {[%clk 0:02:44.3]} 6. dxc3 {[%clk 0:02:47.8]} 6... Bd6
{[%clk 0:02:41.8]} 7. Nc4 {[%clk 0:02:46]} 7... Be7 {[%clk 0:02:36]} 8. Qxd8+
{[%clk 0:02:41.7]} 8... Bxd8 {[%clk 0:02:36.9]} 9. e4 {[%clk 0:02:40.8]} 9...
O-O {[%clk 0:02:36]} 10. Bf4 {[%clk 0:02:30.2]} 10... a5 {[%clk 0:02:23.5]} 11.
O-O-O {[%clk 0:02:20.6]} 11... Nd7 {[%clk 0:02:05.6]} 12. Ne3 {[%clk 0:02:03]}
12... Nc5 {[%clk 0:02:01.1]} 13. f3 {[%clk 0:01:56.7]} 13... Be6 {[%clk
0:01:58.6]} 14. Kb1 {[%clk 0:01:49.4]} 14... c6 {[%clk 0:01:47.7]} 15. Bd6
{[%clk 0:01:47.6]} 15... Na4 {[%clk 0:01:37.2]} 16. Bxf8 {[%clk 0:01:46.1]}
16... Kxf8 {[%clk 0:01:38.1]} 17. Bc4 {[%clk 0:01:45.3]} 17... Bxc4 {[%clk
0:00:47.1]} 18. Nxc4 {[%clk 0:01:44.3]} 18... b5 {[%clk 0:00:46.7]} 19. Ne5
{[%clk 0:01:41.2]} 19... Rc8 {[%clk 0:00:44.5]} 20. Nxc6 {[%clk 0:01:39.7]}
20... Bb6 {[%clk 0:00:42.1]} 21. Ne5 {[%clk 0:01:38.5]} 21... f6 {[%clk
0:00:42.3]} 22. Nd7+ {[%clk 0:01:37.9]} 22... Ke7 {[%clk 0:00:42.4]} 23. Nxb6
{[%clk 0:01:35.7]} 23... Nxb6 {[%clk 0:00:43.3]} 24. Rd3 {[%clk 0:01:34.3]}
24... Rc6 {[%clk 0:00:42.2]} 25. b3 {[%clk 0:01:32.8]} 25... a4 {[%clk
0:00:41.7]} 26. Rhd1 {[%clk 0:01:31.5]} 26... h6 {[%clk 0:00:41.2]} 27. f4
{[%clk 0:01:30.1]} 27... Re6 {[%clk 0:00:37.3]} 28. Rd4 {[%clk 0:01:29.1]} 28...
axb3 {[%clk 0:00:36.9]} 29. axb3 {[%clk 0:01:28.5]} 29... Rc6 {[%clk 0:00:37.4]}
30. Kb2 {[%clk 0:01:28]} 30... g5 {[%clk 0:00:37.9]} 31. e5 {[%clk 0:01:21.4]}
31... gxf4 {[%clk 0:00:25.5]} 32. exf6+ {[%clk 0:01:19.6]} 32... Kxf6 {[%clk
0:00:25.7]} 33. Rxf4+ {[%clk 0:01:18.6]} 33... Kg5 {[%clk 0:00:26]} 34. Rb4
{[%clk 0:01:15.2]} 34... Rc5 {[%clk 0:00:23.3]} 35. Rbd4 {[%clk 0:01:14.4]}
35... Rf5 {[%clk 0:00:20.5]} 36. R1d2 {[%clk 0:01:13.1]} 36... h5 {[%clk
0:00:17.7]} 37. h4+ {[%clk 0:01:12.5]} 1-0

[Event "*** SCC Grand Prix: Titled Tuesday Blitz"]
[Site "Chess.com"]
[Date "2020.07.21"]
[Round "2"]
[White "MasterKroket"]
[Black "Yoshikrov"]
[Result "1-0"]
[WhiteElo "2403"]
[BlackElo "2117"]
[TimeControl "180+1"]
[EndTime "10:16:29 PDT"]
[Termination "MasterKroket won by resignation"]

1. d4 {[%clk 0:03:00.9]} 1... Nf6 {[%clk 0:02:59.6]} 2. c4 {[%clk 0:03:01.4]}
2... g6 {[%clk 0:02:59.5]} 3. Nc3 {[%clk 0:03:00.9]} 3... d5 {[%clk 0:02:59.5]}
4. cxd5 {[%clk 0:03:01.8]} 4... Nxd5 {[%clk 0:02:59.2]} 5. e4 {[%clk 0:03:02.7]}
5... Nxc3 {[%clk 0:02:59.5]} 6. bxc3 {[%clk 0:03:03.6]} 6... c5 {[%clk 0:03:00]}
7. Be3 {[%clk 0:03:04.1]} 7... Bg7 {[%clk 0:02:59.8]} 8. Qd2 {[%clk 0:03:04.5]}
8... O-O {[%clk 0:02:59.6]} 9. Nf3 {[%clk 0:03:04.9]} 9... Bg4 {[%clk
0:02:59.3]} 10. Ng5 {[%clk 0:03:02.9]} 10... Nc6 {[%clk 0:02:56.6]} 11. d5
{[%clk 0:03:01.9]} 11... Na5 {[%clk 0:02:41.2]} 12. h3 {[%clk 0:03:01]} 12...
Bd7 {[%clk 0:02:40]} 13. Bxc5 {[%clk 0:02:52.4]} 13... Rc8 {[%clk 0:02:38.3]}
14. Bd4 {[%clk 0:02:52.5]} 14... Nc4 {[%clk 0:02:35.1]} 15. Bxc4 {[%clk
0:02:45.8]} 15... Rxc4 {[%clk 0:02:31.4]} 16. O-O {[%clk 0:02:37.6]} 16... e5
{[%clk 0:02:11.1]} 17. dxe6 {[%clk 0:02:35.5]} 17... Bxe6 {[%clk 0:02:11.3]} 18.
Nxe6 {[%clk 0:02:25.2]} 18... fxe6 {[%clk 0:02:08.2]} 19. Qe2 {[%clk 0:02:24.8]}
19... Ra4 {[%clk 0:01:57.8]} 20. e5 {[%clk 0:02:20.7]} 20... Qd5 {[%clk
0:01:51.7]} 21. Rfb1 {[%clk 0:02:17.2]} 21... b6 {[%clk 0:01:51]} 22. Rb5 {[%clk
0:02:10.1]} 22... Qc6 {[%clk 0:01:36.4]} 23. Rb4 {[%clk 0:02:06.8]} 23... Ra5
{[%clk 0:01:29.2]} 24. a4 {[%clk 0:02:00.3]} 24... Rf5 {[%clk 0:01:16.9]} 25.
Rc4 {[%clk 0:01:38.9]} 25... Qb7 {[%clk 0:01:11.1]} 26. Re1 {[%clk 0:01:35.4]}
26... Bxe5 {[%clk 0:00:30.1]} 27. Bxe5 {[%clk 0:01:30.9]} 27... Raxe5 {[%clk
0:00:29.5]} 28. Qd2 {[%clk 0:01:22.8]} 28... Rxe1+ {[%clk 0:00:28.9]} 29. Qxe1
{[%clk 0:01:23.4]} 29... Kf7 {[%clk 0:00:24.7]} 30. Qe3 {[%clk 0:01:18.2]} 30...
Qd7 {[%clk 0:00:23]} 31. Qg3 {[%clk 0:01:14.7]} 31... Rd5 {[%clk 0:00:22.2]} 32.
Rc7 {[%clk 0:01:14]} 1-0

[Event "*** SCC Grand Prix: Titled Tuesday Blitz"]
[Site "Chess.com"]
[Date "2020.07.21"]
[Round "2"]
[White "Antipov_Mikhail_Al"]
[Black "UCantHandleDenker"]
[Result "1-0"]
[WhiteElo "2844"]
[BlackElo "2560"]
[TimeControl "180+1"]
[EndTime "10:16:33 PDT"]
[Termination "Antipov_Mikhail_Al won by resignation"]

1. e4 {[%clk 0:02:50.1]} 1... d6 {[%clk 0:02:59.2]} 2. Nf3 {[%clk 0:02:47.2]}
2... Nf6 {[%clk 0:02:59.3]} 3. Nc3 {[%clk 0:02:47]} 3... g6 {[%clk 0:02:59]} 4.
g3 {[%clk 0:02:45]} 4... Bg7 {[%clk 0:02:58.5]} 5. Bg2 {[%clk 0:02:45.4]} 5...
O-O {[%clk 0:02:58]} 6. O-O {[%clk 0:02:46]} 6... Nc6 {[%clk 0:02:35.4]} 7. h3
{[%clk 0:02:42.2]} 7... e5 {[%clk 0:02:34.4]} 8. d3 {[%clk 0:02:41.2]} 8... h6
{[%clk 0:02:31.9]} 9. Kh2 {[%clk 0:02:36.5]} 9... Bd7 {[%clk 0:02:31.1]} 10. Be3
{[%clk 0:02:26.8]} 10... a6 {[%clk 0:02:30.2]} 11. Qd2 {[%clk 0:02:21.7]} 11...
Kh7 {[%clk 0:02:29.4]} 12. d4 {[%clk 0:02:22.3]} 12... exd4 {[%clk 0:02:28.9]}
13. Nxd4 {[%clk 0:02:23.2]} 13... Re8 {[%clk 0:02:28.1]} 14. Rae1 {[%clk
0:02:18.2]} 14... Na5 {[%clk 0:02:12]} 15. b3 {[%clk 0:02:15.8]} 15... c5 {[%clk
0:02:11.3]} 16. Nde2 {[%clk 0:02:15.7]} 16... Bc6 {[%clk 0:02:11.5]} 17. f3
{[%clk 0:02:13.4]} 17... b5 {[%clk 0:02:10.3]} 18. Nf4 {[%clk 0:02:09.5]} 18...
b4 {[%clk 0:02:09.8]} 19. Ncd5 {[%clk 0:02:09.8]} 19... Nxd5 {[%clk 0:02:08.4]}
20. Nxd5 {[%clk 0:02:10.7]} 20... Rc8 {[%clk 0:01:37]} 21. f4 {[%clk 0:02:07.9]}
21... Bb5 {[%clk 0:01:30.6]} 22. Rf2 {[%clk 0:02:05.5]} 22... Nc6 {[%clk
0:01:30.5]} 23. a4 {[%clk 0:02:01.3]} 23... bxa3 {[%clk 0:01:20.2]} 24. c4
{[%clk 0:02:01.4]} 24... Nd4 {[%clk 0:01:19.4]} 25. cxb5 {[%clk 0:01:58.9]}
25... axb5 {[%clk 0:01:18.8]} 26. f5 {[%clk 0:01:54.6]} 26... Nxb3 {[%clk
0:00:47.6]} 27. Qa2 {[%clk 0:01:50.3]} 27... Nd4 {[%clk 0:00:45.3]} 28. f6
{[%clk 0:01:40]} 28... Bf8 {[%clk 0:00:39.6]} 29. Bxd4 {[%clk 0:01:40.4]} 29...
cxd4 {[%clk 0:00:37.7]} 30. Qxa3 {[%clk 0:01:41]} 30... Qd7 {[%clk 0:00:26.3]}
31. h4 {[%clk 0:01:34.1]} 31... Ra8 {[%clk 0:00:20.6]} 32. Qd3 {[%clk
0:01:32.5]} 32... Qa7 {[%clk 0:00:13.9]} 33. h5 {[%clk 0:01:29.8]} 33... Re5
{[%clk 0:00:11.8]} 34. hxg6+ {[%clk 0:01:29.1]} 34... fxg6 {[%clk 0:00:12.6]}
35. Rc2 {[%clk 0:01:19.5]} 35... Qf7 {[%clk 0:00:12.6]} 36. Rec1 {[%clk
0:01:18.5]} 36... Rh5+ {[%clk 0:00:09.7]} 37. Kg1 {[%clk 0:01:18.4]} 1-0

[Event "*** SCC Grand Prix: Titled Tuesday Blitz"]
[Site "Chess.com"]
[Date "2020.07.21"]
[Round "2"]
[White "LaPorfia"]
[Black "Agent-JL"]
[Result "0-1"]
[WhiteElo "2236"]
[BlackElo "2450"]
[TimeControl "180+1"]
[EndTime "10:16:35 PDT"]
[Termination "Agent-JL won by resignation"]

1. d4 {[%clk 0:03:00.9]} 1... Nf6 {[%clk 0:02:59.9]} 2. Nf3 {[%clk 0:03:00.8]}
2... e6 {[%clk 0:03:00.3]} 3. Bf4 {[%clk 0:02:59.1]} 3... c5 {[%clk 0:03:00.7]}
4. e3 {[%clk 0:02:57.9]} 4... cxd4 {[%clk 0:03:00.8]} 5. exd4 {[%clk 0:02:58]}
5... d6 {[%clk 0:03:01.4]} 6. Nbd2 {[%clk 0:02:56.5]} 6... Be7 {[%clk 0:03:02]}
7. c3 {[%clk 0:02:56.4]} 7... O-O {[%clk 0:03:02.4]} 8. Bd3 {[%clk 0:02:56.6]}
8... b6 {[%clk 0:03:02.8]} 9. Qe2 {[%clk 0:02:54.8]} 9... Bb7 {[%clk 0:03:03.4]}
10. O-O {[%clk 0:02:50.8]} 10... Re8 {[%clk 0:03:04]} 11. Rfe1 {[%clk
0:02:49.9]} 11... Nbd7 {[%clk 0:03:03.8]} 12. a4 {[%clk 0:02:50]} 12... a6
{[%clk 0:03:03.1]} 13. Nc4 {[%clk 0:02:49.7]} 13... Nf8 {[%clk 0:03:00.3]} 14.
Rad1 {[%clk 0:02:46.6]} 14... Ng6 {[%clk 0:02:59.3]} 15. Bg3 {[%clk 0:02:45.1]}
15... Nd5 {[%clk 0:02:59.3]} 16. Bc2 {[%clk 0:02:39.6]} 16... Ndf4 {[%clk
0:02:58.7]} 17. Qe3 {[%clk 0:02:30.3]} 17... Nd5 {[%clk 0:02:53.2]} 18. Qd3
{[%clk 0:02:24.7]} 18... b5 {[%clk 0:02:42.5]} 19. axb5 {[%clk 0:02:14.7]} 19...
axb5 {[%clk 0:02:43.4]} 20. Ne3 {[%clk 0:02:14.8]} 20... Qb6 {[%clk 0:02:38]}
21. Nxd5 {[%clk 0:02:12.5]} 21... Bxd5 {[%clk 0:02:38.9]} 22. h4 {[%clk
0:02:11.5]} 22... Qc6 {[%clk 0:02:32.4]} 23. h5 {[%clk 0:02:10.9]} 23... Nf8
{[%clk 0:02:32.1]} 24. Rc1 {[%clk 0:01:31.8]} 24... f5 {[%clk 0:02:22]} 25. b3
{[%clk 0:01:23.1]} 25... Ra3 {[%clk 0:02:16.9]} 26. Rb1 {[%clk 0:01:20.9]} 26...
Rc8 {[%clk 0:02:08]} 27. Rec1 {[%clk 0:01:18.3]} 27... Qxc3 {[%clk 0:01:43]} 28.
Qxb5 {[%clk 0:01:11.4]} 28... Bxf3 {[%clk 0:01:02.4]} 29. gxf3 {[%clk
0:01:10.4]} 29... Qxd4 {[%clk 0:01:01.9]} 30. Qe2 {[%clk 0:00:52.8]} 30... Ra2
{[%clk 0:00:47.4]} 31. b4 {[%clk 0:00:45.9]} 31... Qc3 {[%clk 0:00:35.3]} 32.
Bb3 {[%clk 0:00:43.4]} 32... Qxc1+ {[%clk 0:00:30]} 33. Rxc1 {[%clk 0:00:43.3]}
33... Rxc1+ {[%clk 0:00:30.5]} 34. Qf1 {[%clk 0:00:43.2]} 34... Rxf1+ {[%clk
0:00:30]} 35. Kxf1 {[%clk 0:00:43.6]} 35... Rb2 {[%clk 0:00:28.9]} 0-1

[Event "*** SCC Grand Prix: Titled Tuesday Blitz"]
[Site "Chess.com"]
[Date "2020.07.21"]
[Round "2"]
[White "crazychessbr"]
[Black "londonkid"]
[Result "0-1"]
[WhiteElo "2124"]
[BlackElo "2406"]
[TimeControl "180+1"]
[EndTime "10:16:35 PDT"]
[Termination "londonkid won on time"]

1. e4 {[%clk 0:03:00.9]} 1... e6 {[%clk 0:03:00.5]} 2. d3 {[%clk 0:03:00.1]}
2... d5 {[%clk 0:03:01.2]} 3. g3 {[%clk 0:02:56.6]} 3... Nf6 {[%clk 0:03:00.1]}
4. Nd2 {[%clk 0:02:55.7]} 4... c5 {[%clk 0:02:59.8]} 5. Ngf3 {[%clk 0:02:55.1]}
5... Nc6 {[%clk 0:03:00.1]} 6. Bg2 {[%clk 0:02:55.2]} 6... Be7 {[%clk
0:03:00.7]} 7. O-O {[%clk 0:02:55.2]} 7... Qc7 {[%clk 0:03:01.2]} 8. c3 {[%clk
0:02:53.9]} 8... b6 {[%clk 0:03:01.6]} 9. Qc2 {[%clk 0:02:54.2]} 9... Bb7 {[%clk
0:03:01.7]} 10. Re1 {[%clk 0:02:54.1]} 10... h6 {[%clk 0:03:01.8]} 11. Nf1
{[%clk 0:02:50.9]} 11... O-O {[%clk 0:03:00]} 12. h4 {[%clk 0:02:50]} 12... c4
{[%clk 0:02:55.3]} 13. e5 {[%clk 0:02:49]} 13... cxd3 {[%clk 0:02:54.5]} 14.
Qxd3 {[%clk 0:02:47.8]} 14... Ne4 {[%clk 0:02:52.7]} 15. Bf4 {[%clk 0:02:43.9]}
15... Na5 {[%clk 0:02:47.6]} 16. N1h2 {[%clk 0:02:28.8]} 16... Nc4 {[%clk
0:02:46.4]} 17. Rab1 {[%clk 0:02:24.6]} 17... Bc5 {[%clk 0:02:38.1]} 18. Ng4
{[%clk 0:02:19.7]} 18... Ba6 {[%clk 0:02:28.6]} 19. Qc2 {[%clk 0:02:18.2]} 19...
Rfe8 {[%clk 0:02:19.4]} 20. b3 {[%clk 0:01:19.4]} 20... Na3 {[%clk 0:02:18.5]}
21. Qb2 {[%clk 0:01:17.5]} 21... Nxb1 {[%clk 0:02:15.4]} 22. Qxb1 {[%clk
0:01:13.7]} 22... Bf8 {[%clk 0:02:11.6]} 23. Rc1 {[%clk 0:00:30.3]} 23... Be2
{[%clk 0:02:04.3]} 24. Nfh2 {[%clk 0:00:28.2]} 24... Nxc3 {[%clk 0:01:46.6]} 25.
Qb2 {[%clk 0:00:24.8]} 25... Rac8 {[%clk 0:01:41.7]} 26. Rxc3 {[%clk 0:00:22.8]}
26... Qxc3 {[%clk 0:01:41.8]} 27. Qxe2 {[%clk 0:00:23.3]} 27... Qa1+ {[%clk
0:01:37.8]} 28. Bf1 {[%clk 0:00:18.6]} 28... Qb1 {[%clk 0:01:32.6]} 29. Nf3
{[%clk 0:00:16.2]} 29... Rc2 {[%clk 0:01:31.7]} 30. Qe3 {[%clk 0:00:11.3]} 30...
Bc5 {[%clk 0:01:25.7]} 31. Qd3 {[%clk 0:00:06.8]} 31... Rb2 {[%clk 0:01:07]} 32.
Qxb1 {[%clk 0:00:01.4]} 32... Rxb1 {[%clk 0:01:07.1]} 0-1

[Event "*** SCC Grand Prix: Titled Tuesday Blitz"]
[Site "Chess.com"]
[Date "2020.07.21"]
[Round "2"]
[White "Eternauta2400"]
[Black "MF1966Idrisov"]
[Result "0-1"]
[WhiteElo "2592"]
[BlackElo "2362"]
[TimeControl "180+1"]
[EndTime "10:16:36 PDT"]
[Termination "MF1966Idrisov won by resignation"]

1. c4 {[%clk 0:03:00.9]} 1... d6 {[%clk 0:02:56.2]} 2. Nc3 {[%clk 0:02:58]} 2...
f5 {[%clk 0:02:56.3]} 3. d3 {[%clk 0:02:57.2]} 3... Nf6 {[%clk 0:02:56.4]} 4. g3
{[%clk 0:02:57.5]} 4... e5 {[%clk 0:02:55.1]} 5. Bg2 {[%clk 0:02:57.5]} 5... Be7
{[%clk 0:02:54.8]} 6. Nf3 {[%clk 0:02:52.4]} 6... O-O {[%clk 0:02:53.9]} 7. O-O
{[%clk 0:02:52.9]} 7... Nc6 {[%clk 0:02:51.8]} 8. Rb1 {[%clk 0:02:52.4]} 8...
Rb8 {[%clk 0:02:51]} 9. b4 {[%clk 0:02:52.2]} 9... Qe8 {[%clk 0:02:50.5]} 10. b5
{[%clk 0:02:52.4]} 10... Na5 {[%clk 0:02:43.7]} 11. Nd5 {[%clk 0:02:47.8]} 11...
Nxd5 {[%clk 0:02:38.6]} 12. cxd5 {[%clk 0:02:47.8]} 12... Bd7 {[%clk 0:02:37.5]}
13. Bd2 {[%clk 0:02:28.9]} 13... b6 {[%clk 0:02:30.9]} 14. a4 {[%clk 0:02:18.4]}
14... Nb7 {[%clk 0:02:29.4]} 15. Qc2 {[%clk 0:02:14.6]} 15... Nc5 {[%clk
0:02:27.8]} 16. Bb4 {[%clk 0:02:13.3]} 16... Qh5 {[%clk 0:02:24.3]} 17. Nd2
{[%clk 0:02:05.4]} 17... f4 {[%clk 0:02:21.6]} 18. Bxc5 {[%clk 0:01:59.8]} 18...
bxc5 {[%clk 0:02:12.7]} 19. Ne4 {[%clk 0:01:59]} 19... Bh3 {[%clk 0:02:07.5]}
20. Rb2 {[%clk 0:01:54.7]} 20... Bxg2 {[%clk 0:01:56.2]} 21. Kxg2 {[%clk
0:01:54.5]} 21... f3+ {[%clk 0:01:55.9]} 22. exf3 {[%clk 0:01:51.1]} 22... Rxf3
{[%clk 0:01:48.7]} 23. a5 {[%clk 0:01:46.6]} 23... Rbf8 {[%clk 0:01:46.7]} 24.
b6 {[%clk 0:01:38]} 24... cxb6 {[%clk 0:01:44]} 25. axb6 {[%clk 0:01:38.3]}
25... axb6 {[%clk 0:01:43.5]} 26. Rxb6 {[%clk 0:01:38.7]} 26... R3f7 {[%clk
0:01:25.7]} 27. Qd1 {[%clk 0:01:35.1]} 27... Qf5 {[%clk 0:01:04.8]} 28. Qe2
{[%clk 0:01:30.2]} 28... Qd7 {[%clk 0:01:00.6]} 29. Rfb1 {[%clk 0:01:28.5]}
29... h6 {[%clk 0:00:49.3]} 30. Rb8 {[%clk 0:01:17.3]} 30... Rxb8 {[%clk
0:00:45]} 31. Rxb8+ {[%clk 0:01:16.4]} 31... Kh7 {[%clk 0:00:45.9]} 32. Qc2
{[%clk 0:01:02.1]} 32... Qf5 {[%clk 0:00:43.2]} 33. Qd1 {[%clk 0:00:53.2]} 33...
Bf8 {[%clk 0:00:41.1]} 34. Kg1 {[%clk 0:00:45.9]} 34... c4 {[%clk 0:00:39.7]}
35. Rc8 {[%clk 0:00:42.1]} 35... Qxc8 {[%clk 0:00:37.8]} 0-1

[Event "*** SCC Grand Prix: Titled Tuesday Blitz"]
[Site "Chess.com"]
[Date "2020.07.21"]
[Round "2"]
[White "baag"]
[Black "Nayemhaque22"]
[Result "1-0"]
[WhiteElo "2617"]
[BlackElo "2185"]
[TimeControl "180+1"]
[EndTime "10:16:36 PDT"]
[Termination "baag won by resignation"]

1. d4 {[%clk 0:03:00.9]} 1... Nf6 {[%clk 0:02:59.3]} 2. c4 {[%clk 0:03:01.5]}
2... e6 {[%clk 0:02:58.9]} 3. Nc3 {[%clk 0:03:01.9]} 3... Bb4 {[%clk 0:02:58.3]}
4. Bd2 {[%clk 0:03:02.3]} 4... d5 {[%clk 0:02:55.4]} 5. e3 {[%clk 0:03:01.5]}
5... O-O {[%clk 0:02:54.9]} 6. Nf3 {[%clk 0:03:01.9]} 6... b6 {[%clk 0:02:54.2]}
7. Bd3 {[%clk 0:03:01.2]} 7... Bb7 {[%clk 0:02:52.2]} 8. O-O {[%clk 0:03:01.3]}
8... Nbd7 {[%clk 0:02:52.1]} 9. Nxd5 {[%clk 0:02:59.6]} 9... Nxd5 {[%clk
0:02:48.4]} 10. cxd5 {[%clk 0:02:59.4]} 10... Bd6 {[%clk 0:02:39.6]} 11. dxe6
{[%clk 0:02:51.5]} 11... fxe6 {[%clk 0:02:40.2]} 12. e4 {[%clk 0:02:51.4]} 12...
c5 {[%clk 0:02:39.9]} 13. Ng5 {[%clk 0:02:41.3]} 13... Re8 {[%clk 0:02:08]} 14.
e5 {[%clk 0:02:38.5]} 14... h6 {[%clk 0:01:39.8]} 15. Bh7+ {[%clk 0:02:32.8]}
15... Kf8 {[%clk 0:01:38]} 16. exd6 {[%clk 0:02:21.8]} 16... hxg5 {[%clk
0:01:36.8]} 17. Bg6 {[%clk 0:02:22]} 17... Qf6 {[%clk 0:01:25.3]} 18. Bxe8
{[%clk 0:02:19]} 18... Rxe8 {[%clk 0:01:25.9]} 19. dxc5 {[%clk 0:02:18.7]} 19...
Nxc5 {[%clk 0:01:24.4]} 20. Qg4 {[%clk 0:02:17.3]} 20... Ne4 {[%clk 0:01:21.4]}
21. Bc3 {[%clk 0:02:04.9]} 21... Nxc3 {[%clk 0:01:18.6]} 22. bxc3 {[%clk
0:02:05.8]} 22... Rd8 {[%clk 0:01:15.9]} 23. Rad1 {[%clk 0:02:01.3]} 23... Rd7
{[%clk 0:01:10.8]} 24. c4 {[%clk 0:01:59.4]} 24... Kf7 {[%clk 0:01:09.8]} 25.
Rfe1 {[%clk 0:01:58.4]} 25... g6 {[%clk 0:01:08.1]} 26. h3 {[%clk 0:01:53.3]}
26... Qf5 {[%clk 0:01:05]} 27. Qg3 {[%clk 0:01:46]} 27... Kf6 {[%clk 0:00:56.8]}
28. Qc3+ {[%clk 0:01:40.5]} 28... e5 {[%clk 0:00:56.6]} 29. Re3 {[%clk 0:01:32]}
29... Qf4 {[%clk 0:00:32.6]} 30. Rde1 {[%clk 0:01:29.9]} 30... Rxd6 {[%clk
0:00:31.6]} 31. Rxe5 {[%clk 0:01:29.6]} 31... Qd4 {[%clk 0:00:20.1]} 32. Re6+
{[%clk 0:01:29.4]} 32... Kf7 {[%clk 0:00:18.1]} 33. Re7+ {[%clk 0:01:29.4]}
33... Kf8 {[%clk 0:00:16.4]} 34. Qxd4 {[%clk 0:01:29.1]} 1-0

[Event "*** SCC Grand Prix: Titled Tuesday Blitz"]
[Site "Chess.com"]
[Date "2020.07.21"]
[Round "2"]
[White "politeplayer"]
[Black "AsaHoffmann"]
[Result "0-1"]
[WhiteElo "2209"]
[BlackElo "2432"]
[TimeControl "180+1"]
[EndTime "10:16:37 PDT"]
[Termination "AsaHoffmann won by resignation"]

1. f4 {[%clk 0:03:00.9]} 1... d6 {[%clk 0:02:57.9]} 2. Nf3 {[%clk 0:02:59.9]}
2... Bg4 {[%clk 0:02:52.9]} 3. e4 {[%clk 0:02:56.7]} 3... g6 {[%clk 0:02:48.5]}
4. Bc4 {[%clk 0:02:55.4]} 4... e6 {[%clk 0:02:48.2]} 5. O-O {[%clk 0:02:52]}
5... c6 {[%clk 0:02:47.4]} 6. f5 {[%clk 0:02:47.5]} 6... d5 {[%clk 0:02:44.6]}
7. fxe6 {[%clk 0:02:43.1]} 7... fxe6 {[%clk 0:02:37.2]} 8. exd5 {[%clk
0:02:37.5]} 8... cxd5 {[%clk 0:02:34.9]} 9. Bb5+ {[%clk 0:02:31.6]} 9... Nc6
{[%clk 0:02:34.5]} 10. d4 {[%clk 0:02:00.3]} 10... Bg7 {[%clk 0:02:32.1]} 11.
Qe1 {[%clk 0:01:42.2]} 11... Ne7 {[%clk 0:01:58.2]} 12. c3 {[%clk 0:01:27.4]}
12... O-O {[%clk 0:01:56.3]} 13. h3 {[%clk 0:01:21.7]} 13... Bf5 {[%clk
0:01:52.5]} 14. Bg5 {[%clk 0:01:10.6]} 14... Qd6 {[%clk 0:01:50]} 15. Nbd2
{[%clk 0:00:51.1]} 15... Rae8 {[%clk 0:01:48.8]} 16. Bxc6 {[%clk 0:00:45.2]}
16... Nxc6 {[%clk 0:01:43.7]} 17. Qh4 {[%clk 0:00:36.6]} 17... e5 {[%clk
0:01:33.5]} 18. dxe5 {[%clk 0:00:30.7]} 18... Nxe5 {[%clk 0:01:32.7]} 19. Nxe5
{[%clk 0:00:27.8]} 19... Bxe5 {[%clk 0:01:20]} 20. Bh6 {[%clk 0:00:23.7]} 20...
Rf7 {[%clk 0:01:09.8]} 21. Nf3 {[%clk 0:00:23.6]} 21... Bf6 {[%clk 0:00:59.9]}
22. Ng5 {[%clk 0:00:21.4]} 22... Rfe7 {[%clk 0:00:53.3]} 23. g4 {[%clk
0:00:17.5]} 23... Bxg5 {[%clk 0:00:38.5]} 24. Qxg5 {[%clk 0:00:14.7]} 24... Qg3+
{[%clk 0:00:37.3]} 25. Kh1 {[%clk 0:00:14.9]} 25... Be4+ {[%clk 0:00:34.6]} 0-1